[Event "Anderssen Festival 2019"]
[Site "Wroclaw"]
[Date "2019.08.11"]
[Round "9.6"]
[White "Mitchell, Martin"]
[Black "Lugovskoy, Maxim"]
[Result "1/2-1/2"]
[ECO "D43"]
[WhiteElo "2218"]
[BlackElo "2425"]
[Annotator "NA"]
[PlyCount "152"]
[EventDate "2019.08.05"]
[EventType "swiss"]
[EventCountry "POL"]
[SourceTitle "playchess.com"]
[Source "ChessBase"]
[SourceQuality "1"]
[TimeControl "40/5400+30:900+30"]

1. d4 e6 2. c4 d5 3. Nc3 Nf6 4. Nf3 c6 5. Bg5 Nbd7 6. cxd5 exd5 7. Qc2 Be7 8. e3 O-O 9. Bd3 Re8 10. h3 Nf8 11. Bf4 Ng6 12. Bh2 Bd6 13. Bxd6 Qxd6 14. O-O-O b5 15. Kb1 a5 16. g4 a4 17. g5 Nd7 18. h4 Nb6 19. h5 Nf8 20. Ne5 Nc4 21. Bxc4 bxc4 22. g6 fxg6 23. hxg6 h6 24. f4 Qf6 25. e4 a3 26. Ka1 Nxg6 27. Nxg6 Qxg6 28. f5 Qf6 29. exd5 Bxf5 30. Qf2 axb2+ 31. Kxb2 cxd5 32. Rhf1 Rf8 33. Ka1 Qd6 34. Qg2 Be4 35. Nxe4 dxe4 36. Rxf8+ Rxf8 37. Qxe4 Kh8 38. Qe5 Qxe5 39. dxe5 Re8 40. a4 Rxe5 41. Kb2 g5 42. Kc3 Kg7 43. Ra1 Ra5 44. Kb4 Ra8 45. a5 g4 46. Kxc4 h5 47. Kd5 Kg6 48. Ke4 Kg5 49. Ke3 Ra6 50. Kf2 h4 51. Ra4 Kh5 52. Ra1 Rf6+ 53. Kg1 Ra6 54. Kf2 Kg5 55. Ra4 Rc6 56. a6 Rc2+ 57. Kf1 Rc1+ 58. Kf2 g3+ 59. Kg2 Rc2+ 60. Kg1 h3 61. Ra5+ Kf4 62. Ra4+ Ke5 63. Ra1 Rc8 64. a7 Ra8 65. Ra5+ Kd4 66. Ra3 h2+ 67. Kg2 Rh8 68. Ra1 Ra8 69. Kxg3 Rxa7 70. Rd1+ Ke3 71. Re1+ Kd2 72. Rh1 Ke3 73. Re1+ Kd2 74. Rh1 Rg7+ 75. Kxh2 Ke2 76. Ra1 Kf2 1/2-1/2

[Event "Anderssen Festival 2019"]
[Site "Wroclaw"]
[Date "2019.08.11"]
[Round "9.7"]
[White "Piekielny, Pawel"]
[Black "Smal, Tobiasz"]
[Result "0-1"]
[ECO "B96"]
[WhiteElo "1985"]
[BlackElo "2027"]
[Annotator "NA"]
[PlyCount "66"]
[EventDate "2019.08.05"]
[EventType "swiss"]
[EventCountry "POL"]
[SourceTitle "playchess.com"]
[Source "ChessBase"]
[SourceQuality "1"]
[TimeControl "40/5400+30:900+30"]

1. e4 {[%emt 0:00:00]} c5 {[%emt 0:00:00]} 2. Nf3 {[%emt 0:00:00]} d6 {[%emt 0:00:04]} 3. d4 {[%emt 0:00:00]} cxd4 {[%emt 0:00:05]} 4. Nxd4 {[%emt 0:00:00]} Nf6 {[%emt 0:00:05]} 5. Nc3 {[%emt 0:00:00]} a6 {[%emt 0:00:03]} 6. Bg5 {[%emt 0:00:00]} e6 {[%emt 0:00:06]} 7. f4 {[%emt 0:00:00]} h6 {[%emt 0:00:16]} 8. Bh4 {[%emt 0:00:00]} Qb6 {[%emt 0:00:10]} 9. a3 {[%emt 0:00:15]} Nc6 {[%emt 0:00:18]} 10. Bf2 {[%emt 0:00:18]} Qc7 {[%emt 0:00:06]} 11. Be2 {[%emt 0:01:50]} Be7 {[%emt 0:00:51]} 12. Bf3 {[%emt 0:00:43]} Bd7 {[%emt 0:00:06]} 13. Nb3 {[%emt 0:09:08]} Na5 {[%emt 0:06:41]} 14. Nxa5 {[%emt 0:01:52]} Qxa5 {[%emt 0:02:15]} 15. Qe2 {[%emt 0:03:13]} Rc8 {[%emt 0:07:00]} 16. O-O {[%emt 0:01:35]} e5 {[%emt 0:04:05]} 17. f5 {[%emt 0:07:47]} O-O {[%emt 0:15:58]} 18. Rfd1 {[%emt 0:05:48]} Rfd8 {[%emt 0:04:55]} 19. Be3 {[%emt 0:07:10]} Rxc3 {[%emt 0:11:23]} 20. bxc3 {[%emt 0:00:11]} d5 {[%emt 0:01:27]} 21. exd5 {[%emt 0:10:33]} e4 {[%emt 0:02:59]} 22. Bd4 {[%emt 0:13:03]} Bc5 {[%emt 0:02:00]} 23. Bg4 {[%emt 0:03:44]} Qxc3 {[%emt 0:05:36]} 24. Qd2 {[%emt 0:00:23]} Qxd4+ {[%emt 0:00:53]} 25. Qxd4 {[%emt 0:00:05]} Bxd4+ {[%emt 0:00:04]} 26. Rxd4 {[%emt 0:00:05]} Nxg4 {[%emt 0:00:10]} 27. h3 {[%emt 0:00:59]} Ne3 {[%emt 0:01:29]} 28. Rxe4 {[%emt 0:02:16]} Nxc2 {[%emt 0:00:39]} 29. Ra2 {[%emt 0:00:15]} Bxf5 {[%emt 0:00:22]} 30. Re5 {[%emt 0:00:14]} Bd3 {[%emt 0:01:14]} 31. Rb2 {[%emt 0:00:38]} b5 {[%emt 0:00:19]} 32. Kf2 {[%emt 0:01:11]} Nxa3 {[%emt 0:00:34]} 33. Rd2 {[%emt 0:00:18]} Nc4 {[%emt 0:00:09]} 0-1

[Event "Anderssen Festival 2019"]
[Site "Wroclaw"]
[Date "2019.08.11"]
[Round "9.9"]
[White "Piotrowski, Przemyslaw"]
[Black "Barbier, Astrid"]
[Result "1-0"]
[ECO "B20"]
[WhiteElo "2273"]
[BlackElo "1941"]
[Annotator "NA"]
[PlyCount "69"]
[EventDate "2019.08.05"]
[EventType "swiss"]
[EventCountry "POL"]
[SourceTitle "playchess.com"]
[Source "ChessBase"]
[SourceQuality "1"]
[TimeControl "40/5400+30:900+30"]

1. e4 c5 2. b3 Nc6 3. Bb2 e5 4. Bc4 d6 5. Ne2 Nf6 6. Nbc3 g6 7. O-O Bg7 8. d3 O-O 9. h3 a6 10. a4 Na5 11. f4 exf4 12. Nxf4 Nxc4 13. bxc4 Bd7 14. a5 Bc6 15. Nce2 Nh5 16. Bxg7 Nxg7 17. Qd2 f5 18. exf5 Rxf5 19. d4 cxd4 20. Nxd4 Re5 21. Nd3 Re7 22. Rf2 Qd7 23. Raf1 Rae8 24. Qh6 Re4 25. c3 R4e7 26. Rf6 Qd8 27. Nf2 Re1 28. Ng4 Rxf1+ 29. Rxf1 Rf8 30. Qxg7+ Kxg7 31. Ne6+ Kg8 32. Nh6+ Kh8 33. Nxd8 Re8 34. Nxc6 bxc6 35. Nf7+ 1-0

[Event "Anderssen Festival 2019"]
[Site "Wroclaw"]
[Date "2019.08.11"]
[Round "9.10"]
[White "Snihur, Piotr"]
[Black "Krawiecki, Stanislaw"]
[Result "1/2-1/2"]
[ECO "D70"]
[WhiteElo "2256"]
[BlackElo "1923"]
[Annotator "NA"]
[PlyCount "89"]
[EventDate "2019.08.05"]
[EventType "swiss"]
[EventCountry "POL"]
[SourceTitle "playchess.com"]
[Source "ChessBase"]
[SourceQuality "1"]
[TimeControl "40/5400+30:900+30"]

1. d4 Nf6 2. c4 g6 3. f3 d5 4. cxd5 Nxd5 5. e4 Nb6 6. Nc3 Bg7 7. Be3 O-O 8. Qd2 Nc6 9. O-O-O f5 10. e5 Nb4 11. Nh3 Be6 12. b3 N4d5 13. Nf4 Nxf4 14. Bxf4 Nd5 15. h4 h5 16. Nxd5 Bxd5 17. Be2 a5 18. Rhg1 a4 19. b4 a3 20. Kb1 c6 21. Ka1 Qb6 22. Bg5 Rfe8 23. Qc3 e6 24. g4 Ra4 25. Rb1 hxg4 26. fxg4 Be4 27. Bd3 Bxd3 28. Qxd3 Rxb4 29. Rxb4 Qxb4 30. Rb1 Qa5 31. gxf5 exf5 32. Qc4+ Kh7 33. Bf6 Bxf6 34. exf6 Qd5 35. Rxb7+ Kh8 36. Qc3 Re2 37. Rb8+ Kh7 38. Rb7+ Kh8 39. Rb8+ Kh7 40. Rb7+ Kg8 41. f7+ Kg7 42. f8=Q+ Kxf8 43. Qxa3+ c5 44. Qxc5+ Qxc5 45. dxc5 1/2-1/2

[Event "Anderssen Festival 2019"]
[Site "Wroclaw"]
[Date "2019.08.11"]
[Round "9.11"]
[White "Wieczorek, Zbigniew"]
[Black "Kowalczuk, Mikolaj"]
[Result "1-0"]
[ECO "A27"]
[WhiteElo "2235"]
[BlackElo "1942"]
[Annotator "NA"]
[PlyCount "91"]
[EventDate "2019.08.05"]
[EventType "swiss"]
[EventCountry "POL"]
[SourceTitle "playchess.com"]
[Source "ChessBase"]
[SourceQuality "1"]
[TimeControl "40/5400+30:900+30"]

1. c4 {[%emt 0:00:00]} e5 {[%emt 0:00:00]} 2. Nc3 {[%emt 0:00:00]} Nc6 {[%emt 0:00:00]} 3. Nf3 {[%emt 0:00:00]} g6 {[%emt 0:00:02]} 4. g3 {[%emt 0:00:05]} Bg7 {[%emt 0:00:03]} 5. Bg2 {[%emt 0:00:03]} f5 {[%emt 0:00:15]} 6. d3 {[%emt 0:00:05]} d6 {[%emt 0:00:17]} 7. Rb1 {[%emt 0:00:06]} a5 {[%emt 0:00:05]} 8. O-O {[%emt 0:00:11]} Nf6 {[%emt 0:01:00]} 9. Bg5 {[%emt 0:00:36]} h6 {[%emt 0:01:47]} 10. Bxf6 {[%emt 0:00:04]} Bxf6 {[%emt 0:03:15]} 11. Nd5 {[%emt 0:00:12]} O-O {[%emt 0:14:14]} 12. a3 {[%emt 0:01:14]} Bg7 {[%emt 0:04:48]} 13. b4 {[%emt 0:00:51]} axb4 {[%emt 0:00:13]} 14. axb4 {[%emt 0:00:04]} g5 {[%emt 0:03:25]} 15. b5 {[%emt 0:01:46]} Ne7 {[%emt 0:00:38]} 16. Nd2 {[%emt 0:02:15]} Rb8 {[%emt 0:10:15]} 17. Nb3 {[%emt 0:13:18]} b6 {[%emt 0:13:34]} 18. Nd2 {[%emt 0:03:08]} Bb7 {[%emt 0:04:21]} 19. Nb4 {[%emt 0:00:14]} Bxg2 {[%emt 0:01:55]} 20. Kxg2 {[%emt 0:00:03]} g4 {[%emt 0:10:56]} 21. e4 {[%emt 0:01:58]} Qe8 {[%emt 0:04:41]} 22. Ra1 {[%emt 0:06:28]} Rb7 {[%emt 0:09:01]} 23. Ra2 {[%emt 0:01:38]} Qh5 {[%emt 0:02:49]} 24. Nc6 {[%emt 0:06:45]} Qh3+ {[%emt 0:03:51]} 25. Kh1 {[%emt 0:00:27]} Nxc6 {[%emt 0:08:15]} 26. bxc6 {[%emt 0:01:04]} Rbb8 {[%emt 0:00:01]} 27. Ra7 {[%emt 0:01:40]} f4 {[%emt 0:02:35]} 28. Rxc7 {[%emt 0:00:58]} Rbc8 {[%emt 0:01:03]} 29. Rxc8 {[%emt 0:00:08]} Rxc8 {[%emt 0:00:05]} 30. Qa4 {[%emt 0:06:55]} f3 {[%emt 0:00:57]} 31. Rg1 {[%emt 0:00:08]} Qh5 {[%emt 0:00:24]} 32. Nf1 {[%emt 0:02:17]} Qe8 {[%emt 0:00:30]} 33. Ne3 {[%emt 0:00:07]} Rxc6 {[%emt 0:00:40]} 34. Nxg4 {[%emt 0:00:45]} h5 {[%emt 0:00:21]} 35. Ne3 {[%emt 0:00:05]} Qc8 {[%emt 0:00:40]} 36. Nf5 {[%emt 0:00:27]} Bf8 {[%emt 0:00:12]} 37. Qd1 {[%emt 0:00:09]} b5 {[%emt 0:00:47]} 38. cxb5 {[%emt 0:00:13]} Rb6 {[%emt 0:00:27]} 39. Qb3+ {[%emt 0:00:57]} Kh8 {[%emt 0:00:29]} 40. Qf7 {[%emt 0:00:00]} Rb7 {[%emt 0:00:00]} 41. Qxh5+ {[%emt 0:00:46]} Rh7 {[%emt 0:00:18]} 42. Qxf3 {[%emt 0:00:05]} Qb7 {[%emt 0:01:37]} 43. Rb1 {[%emt 0:00:15]} Rf7 {[%emt 0:01:18]} 44. b6 {[%emt 0:00:09]} Qc6 {[%emt 0:01:49]} 45. Qh5+ {[%emt 0:00:39]} Kg8 {[%emt 0:01:18]} 46. Qg6+ {[%emt 0:00:11]} 1-0

[Event "Anderssen Festival 2019"]
[Site "Wroclaw"]
[Date "2019.08.11"]
[Round "9.12"]
[White "Zgadzaj, Rafal"]
[Black "Kawalko, Adam"]
[Result "0-1"]
[ECO "A26"]
[WhiteElo "2133"]
[BlackElo "1920"]
[Annotator "NA"]
[PlyCount "74"]
[EventDate "2019.08.05"]
[EventType "swiss"]
[EventCountry "POL"]
[SourceTitle "playchess.com"]
[Source "ChessBase"]
[SourceQuality "1"]
[TimeControl "40/5400+30:900+30"]

1. c4 {[%emt 0:00:00]} e5 {[%emt 0:00:00]} 2. g3 {[%emt 0:00:00]} Nc6 {[%emt 0:00:00]} 3. Bg2 {[%emt 0:00:00]} g6 {[%emt 0:00:04]} 4. Nc3 {[%emt 0:00:00]} Bg7 {[%emt 0:00:09]} 5. d3 {[%emt 0:00:02]} d6 {[%emt 0:01:06]} 6. Rb1 {[%emt 0:00:13]} f5 {[%emt 0:00:22]} 7. Nf3 {[%emt 0:00:41]} Nf6 {[%emt 0:02:29]} 8. O-O {[%emt 0:00:06]} O-O {[%emt 0:01:35]} 9. b4 {[%emt 0:00:09]} h6 {[%emt 0:06:31]} 10. b5 {[%emt 0:02:48]} Ne7 {[%emt 0:01:10]} 11. Qc2 {[%emt 0:00:07]} Be6 {[%emt 0:12:19]} 12. c5 {[%emt 0:02:58]} Nfd5 {[%emt 0:05:33]} 13. Na4 {[%emt 0:03:28]} b6 {[%emt 0:05:47]} 14. cxd6 {[%emt 0:08:22]} cxd6 {[%emt 0:00:32]} 15. Ba3 {[%emt 0:00:19]} Rc8 {[%emt 0:03:26]} 16. Qd2 {[%emt 0:00:49]} Qd7 {[%emt 0:05:38]} 17. e4 {[%emt 0:08:37]} Nc7 {[%emt 0:05:08]} 18. Qb4 {[%emt 0:01:53]} Rfd8 {[%emt 0:01:51]} 19. Nc3 {[%emt 0:05:38]} Kf7 {[%emt 0:07:39]} 20. d4 {[%emt 0:03:44]} d5 {[%emt 0:04:43]} 21. exf5 {[%emt 0:06:51]} Bxf5 {[%emt 0:02:28]} 22. Rbe1 {[%emt 0:00:25]} e4 {[%emt 0:04:14]} 23. Nh4 {[%emt 0:01:11]} Ne6 {[%emt 0:03:51]} 24. Ne2 {[%emt 0:13:48]} Rc4 {[%emt 0:00:58]} 25. Qd2 {[%emt 0:12:22]} Nxd4 {[%emt 0:01:29]} 26. f3 {[%emt 0:00:24]} Nxe2+ {[%emt 0:03:00]} 27. Qxe2 {[%emt 0:03:12]} e3 {[%emt 0:01:46]} 28. g4 {[%emt 0:00:32]} Be6 {[%emt 0:01:01]} 29. Bxe7 {[%emt 0:03:19]} Qxe7 {[%emt 0:01:13]} 30. Nxg6 {[%emt 0:01:03]} Kxg6 {[%emt 0:01:28]} 31. Qd3+ {[%emt 0:00:09]} Kf7 {[%emt 0:01:09]} 32. f4 {[%emt 0:00:19]} Rc3 {[%emt 0:01:32]} 33. Qd1 {[%emt 0:01:06]} d4 {[%emt 0:00:59]} 34. f5 {[%emt 0:01:13]} Bc4 {[%emt 0:01:23]} 35. f6 {[%emt 0:01:23]} Bxf6 {[%emt 0:01:03]} 36. g5 {[%emt 0:04:23]} e2 {[%emt 0:01:20]} 37. Qb1 {[%emt 0:01:46]} Bd3 {[%emt 0:02:17]} 0-1

[Event "Anderssen Festival 2019"]
[Site "Wroclaw"]
[Date "2019.08.11"]
[Round "9.13"]
[White "Klonowski, Arkadiusz"]
[Black "Luberanski, Jakub"]
[Result "0-1"]
[ECO "A06"]
[WhiteElo "1628"]
[BlackElo "2010"]
[Annotator "NA"]
[PlyCount "117"]
[EventDate "2019.08.05"]
[EventType "swiss"]
[EventCountry "POL"]
[SourceTitle "playchess.com"]
[Source "ChessBase"]
[SourceQuality "1"]
[TimeControl "40/5400+30:900+30"]

1. Nf3 {[%emt 0:00:00]} d5 {[%emt 0:00:00]} 2. c4 {[%emt 0:00:00]} c6 {[%emt 0:00:00]} 3. g3 {[%emt 0:00:00]} Nf6 {[%emt 0:00:00]} 4. Bg2 {[%emt 0:00:00]} Bf5 {[%emt 0:02:25]} 5. cxd5 {[%emt 0:02:34]} cxd5 {[%emt 0:01:37]} 6. O-O {[%emt 0:01:56]} Nc6 {[%emt 0:01:52]} 7. d4 {[%emt 0:02:16]} e6 {[%emt 0:00:26]} 8. a3 {[%emt 0:00:23]} Bd6 {[%emt 0:01:27]} 9. Nc3 {[%emt 0:01:03]} O-O {[%emt 0:00:46]} 10. b4 {[%emt 0:02:06]} h6 {[%emt 0:04:18]} 11. Bb2 {[%emt 0:00:58]} Bh7 {[%emt 0:06:51]} 12. Rc1 {[%emt 0:01:36]} Rc8 {[%emt 0:01:23]} 13. e3 {[%emt 0:06:27]} Nd7 {[%emt 0:03:37]} 14. Na4 {[%emt 0:04:56]} Nb6 15. Nd2 Bd3 16. Nxb6 Qxb6 17. Re1 a5 18. Qb3 Ba6 19. bxa5 Qxb3 20. Nxb3 Bc4 21. Rc3 Ra8 22. Bf1 Bxf1 23. Kxf1 Nxa5 24. Nxa5 Rxa5 25. Rb3 Rb8 26. Ra1 Ra4 27. Ke2 Kf8 28. Kd3 Ke7 29. Bc3 Rc4 30. Bb4 Rbc8 31. Bxd6+ Kxd6 32. Rb6+ R8c6 33. Rxc6+ Kxc6 34. Rb1 b5 35. h4 Kb6 36. g4 Ka5 37. f3 f6 38. e4 e5 39. dxe5 dxe4+ 40. fxe4 fxe5 41. Rf1 Ka4 42. Rf7 Kxa3 43. Rxg7 Rd4+ 44. Kc3 b4+ 45. Kc2 Rc4+ 46. Kd3 Rd4+ 47. Kc2 Rc4+ 48. Kd3 Rc3+ 49. Kd2 Rh3 50. g5 Rxh4 51. gxh6 Rxh6 52. Rg5 Rd6+ 53. Ke3 b3 54. Rxe5 b2 55. Rb5 Rd1 56. e5 b1=Q 57. Rxb1 Rxb1 58. Kf4 Kb4 59. Ke3 0-1

[Event "Anderssen Festival 2019"]
[Site "Wroclaw"]
[Date "2019.08.11"]
[Round "9.14"]
[White "Ochman, Sebastian"]
[Black "Korpalski, Maciej"]
[Result "1-0"]
[ECO "E81"]
[WhiteElo "1789"]
[BlackElo "1954"]
[Annotator "NA"]
[PlyCount "69"]
[EventDate "2019.08.05"]
[EventType "swiss"]
[EventCountry "POL"]
[SourceTitle "playchess.com"]
[Source "ChessBase"]
[SourceQuality "1"]
[TimeControl "40/5400+30:900+30"]

1. d4 Nf6 2. c4 g6 3. Nc3 Bg7 4. e4 d6 5. f3 O-O 6. Be3 a6 7. Qd2 Nc6 8. O-O-O Bd7 9. h4 h5 10. Bh6 e5 11. Nge2 Na5 12. Bxg7 Kxg7 13. dxe5 dxe5 14. Ng3 Qe8 15. Nd5 Nxd5 16. Qxd5 Ba4 17. Qxa5 Bxd1 18. Kxd1 Rd8+ 19. Kc2 Qe7 20. Bd3 Rd7 21. Ne2 Rfd8 22. Rd1 b6 23. Qc3 Kh7 24. Qe1 Qc5 25. Qg1 Qa5 26. Nc3 b5 27. Qc5 c6 28. Qxc6 b4 29. Nd5 Rd6 30. Qc7 Qa4+ 31. Kc1 Kg7 32. Qe7 Qxa2 33. Qxe5+ Kh7 34. Nxb4 Qa1+ 35. Kd2 1-0

[Event "Anderssen Festival 2019"]
[Site "Wroclaw"]
[Date "2019.08.11"]
[Round "9.15"]
[White "Gorny, Michael"]
[Black "Wang, Ruiming"]
[Result "1/2-1/2"]
[ECO "A56"]
[WhiteElo "2067"]
[BlackElo "1853"]
[Annotator "NA"]
[PlyCount "66"]
[EventDate "2019.08.05"]
[EventType "swiss"]
[EventCountry "POL"]
[SourceTitle "playchess.com"]
[Source "ChessBase"]
[SourceQuality "1"]
[TimeControl "40/5400+30:900+30"]

1. d4 {[%emt 0:00:00]} Nf6 {[%emt 0:00:00]} 2. c4 {[%emt 0:00:00]} c5 {[%emt 0:00:02]} 3. e3 {[%emt 0:00:30]} cxd4 {[%emt 0:01:39]} 4. exd4 {[%emt 0:00:09]} g6 {[%emt 0:01:49]} 5. Nc3 {[%emt 0:02:31]} Bg7 {[%emt 0:00:33]} 6. Nf3 {[%emt 0:04:35]} O-O {[%emt 0:00:16]} 7. Be2 {[%emt 0:07:07]} d5 {[%emt 0:06:11]} 8. O-O {[%emt 0:01:56]} dxc4 {[%emt 0:09:28]} 9. Bxc4 {[%emt 0:05:23]} Bg4 {[%emt 0:01:45]} 10. d5 {[%emt 0:16:09]} Nbd7 {[%emt 0:05:16]} 11. Re1 {[%emt 0:03:22]} Rc8 {[%emt 0:03:50]} 12. Bb3 {[%emt 0:02:11]} Nc5 {[%emt 0:14:04]} 13. h3 {[%emt 0:05:50]} Bxf3 {[%emt 0:03:06]} 14. Qxf3 {[%emt 0:00:23]} Nxb3 {[%emt 0:03:55]} 15. axb3 {[%emt 0:00:08]} a6 {[%emt 0:00:10]} 16. Bg5 {[%emt 0:01:34]} h6 {[%emt 0:03:20]} 17. Be3 {[%emt 0:03:55]} Nd7 {[%emt 0:08:30]} 18. d6 {[%emt 0:09:15]} exd6 {[%emt 0:07:23]} 19. Qxb7 {[%emt 0:01:52]} Nc5 {[%emt 0:12:08]} 20. Qd5 {[%emt 0:07:49]} Qb6 {[%emt 0:03:02]} 21. Ra3 {[%emt 0:01:29]} Rfe8 {[%emt 0:04:34]} 22. Rd1 {[%emt 0:01:03]} Qb4 {[%emt 0:02:42]} 23. Bd4 {[%emt 0:05:31]} Rcd8 {[%emt 0:03:22]} 24. Qc4 {[%emt 0:04:51]} Rb8 {[%emt 0:01:08]} 25. Qxb4 {[%emt 0:09:04]} Rxb4 {[%emt 0:00:07]} 26. Bxg7 {[%emt 0:00:27]} Kxg7 {[%emt 0:00:08]} 27. Rxd6 {[%emt 0:00:22]} Nxb3 {[%emt 0:00:58]} 28. g3 {[%emt 0:03:59]} Nc1 {[%emt 0:01:12]} 29. Rd2 {[%emt 0:00:34]} Reb8 {[%emt 0:00:49]} 30. Rc2 {[%emt 0:00:56]} Nd3 {[%emt 0:01:14]} 31. Nd1 {[%emt 0:01:27]} Nxb2 {[%emt 0:00:34]} 32. Nxb2 {[%emt 0:00:34]} Rxb2 {[%emt 0:00:07]} 33. Rxb2 {[%emt 0:00:02]} Rxb2 {[%emt 0:00:07]} 1/2-1/2

[Event "Anderssen Festival 2019"]
[Site "Wroclaw"]
[Date "2019.08.11"]
[Round "9.16"]
[White "Zerebiec, Maurycy"]
[Black "Malecki, Rafal"]
[Result "0-1"]
[ECO "A25"]
[WhiteElo "1708"]
[BlackElo "2063"]
[Annotator "NA"]
[PlyCount "96"]
[EventDate "2019.08.05"]
[EventType "swiss"]
[EventCountry "POL"]
[SourceTitle "playchess.com"]
[Source "ChessBase"]
[SourceQuality "1"]
[TimeControl "40/5400+30:900+30"]

1. c4 {[%emt 0:00:00]} e5 {[%emt 0:00:29]} 2. Nc3 {[%emt 0:00:00]} Nc6 {[%emt 0:00:08]} 3. g3 {[%emt 0:00:00]} d6 {[%emt 0:00:05]} 4. Bg2 {[%emt 0:00:05]} Be6 {[%emt 0:00:04]} 5. d3 {[%emt 0:00:08]} Qd7 {[%emt 0:00:07]} 6. e4 {[%emt 0:00:23]} g6 {[%emt 0:01:48]} 7. Nge2 {[%emt 0:00:21]} Bg7 {[%emt 0:00:21]} 8. Be3 {[%emt 0:03:24]} Nge7 {[%emt 0:05:00]} 9. Qd2 {[%emt 0:00:35]} Nd4 {[%emt 0:01:55]} 10. Nd5 {[%emt 0:05:11]} Nxe2 {[%emt 0:13:23]} 11. Qxe2 {[%emt 0:02:04]} O-O {[%emt 0:08:08]} 12. O-O {[%emt 0:00:41]} Nc8 {[%emt 0:02:06]} 13. Qd2 {[%emt 0:03:25]} c6 {[%emt 0:02:10]} 14. Nc3 {[%emt 0:00:08]} Ne7 {[%emt 0:06:44]} 15. Rac1 {[%emt 0:06:15]} f5 {[%emt 0:12:07]} 16. f4 {[%emt 0:04:01]} fxe4 {[%emt 0:03:01]} 17. Nxe4 {[%emt 0:00:28]} Nf5 {[%emt 0:00:36]} 18. fxe5 {[%emt 0:01:06]} Bxe5 {[%emt 0:05:08]} 19. Ng5 {[%emt 0:02:28]} Nxe3 {[%emt 0:07:25]} 20. Rxf8+ {[%emt 0:00:08]} Rxf8 {[%emt 0:00:23]} 21. Nxe6 {[%emt 0:00:06]} Qxe6 {[%emt 0:05:44]} 22. Qxe3 {[%emt 0:00:09]} Qg4 {[%emt 0:08:05]} 23. Kh1 {[%emt 0:01:59]} Bxb2 {[%emt 0:02:31]} 24. Rb1 {[%emt 0:02:20]} Bd4 {[%emt 0:01:01]} 25. Qe7 {[%emt 0:01:38]} Rf7 {[%emt 0:04:17]} 26. Qxd6 {[%emt 0:02:34]} Kg7 {[%emt 0:00:46]} 27. h3 {[%emt 0:01:40]} Qd7 {[%emt 0:01:25]} 28. Qxd7 {[%emt 0:00:34]} Rxd7 {[%emt 0:00:06]} 29. Kh2 {[%emt 0:01:44]} Be5 {[%emt 0:05:46]} 30. Be4 {[%emt 0:00:10]} Rf7 {[%emt 0:00:34]} 31. Kg2 {[%emt 0:00:07]} Bd4 {[%emt 0:01:12]} 32. Rf1 {[%emt 0:00:08]} Rc7 {[%emt 0:01:03]} 33. Rb1 {[%emt 0:00:11]} Kf6 {[%emt 0:00:35]} 34. Rf1+ {[%emt 0:00:19]} Ke5 {[%emt 0:00:48]} 35. Rf8 {[%emt 0:00:20]} Bc5 {[%emt 0:00:50]} 36. Rd8 {[%emt 0:00:39]} Rf7 {[%emt 0:00:37]} 37. Bf3 {[%emt 0:00:09]} Bb6 {[%emt 0:00:23]} 38. Rh8 {[%emt 0:02:32]} Kd4 {[%emt 0:00:19]} 39. Be4 {[%emt 0:00:55]} Kc3 {[%emt 0:00:36]} 40. h4 {[%emt 0:00:00]} Kb2 {[%emt 0:00:00]} 41. h5 {[%emt 0:02:38]} gxh5 {[%emt 0:08:54]} 42. Kh3 {[%emt 0:02:21]} Kxa2 {[%emt 0:00:51]} 43. Rxh7 {[%emt 0:01:31]} Rxh7 {[%emt 0:00:46]} 44. Bxh7 {[%emt 0:00:09]} a5 {[%emt 0:00:28]} 45. Kh4 {[%emt 0:00:53]} a4 {[%emt 0:02:25]} 46. Bf5 {[%emt 0:01:10]} a3 {[%emt 0:00:39]} 47. c5 {[%emt 0:00:27]} Bxc5 {[%emt 0:00:20]} 48. Kxh5 {[%emt 0:00:11]} Kb2 {[%emt 0:00:21]} 0-1

[Event "Anderssen Festival 2019"]
[Site "Wroclaw"]
[Date "2019.08.11"]
[Round "9.17"]
[White "Verwoert, Jef"]
[Black "Lesniak, Szymon"]
[Result "1-0"]
[ECO "A05"]
[WhiteElo "2034"]
[BlackElo "1534"]
[Annotator "NA"]
[PlyCount "105"]
[EventDate "2019.08.05"]
[EventType "swiss"]
[EventCountry "POL"]
[SourceTitle "playchess.com"]
[Source "ChessBase"]
[SourceQuality "1"]
[TimeControl "40/5400+30:900+30"]

1. Nf3 Nf6 2. g3 c5 3. Bg2 g6 4. O-O Bg7 5. d4 cxd4 6. Nxd4 O-O 7. Nc3 Nc6 8. Nb3 d6 9. a4 Be6 10. a5 Qd7 11. Re1 Rfd8 12. a6 bxa6 13. Nd4 Nxd4 14. Bxa8 Nxc2 15. Qxc2 Rxa8 16. Rxa6 Qb7 17. Qd3 Rc8 18. Ra4 Bd7 19. Qa6 Qa8 20. Rc4 Rxc4 21. Qxc4 Bh3 22. e4 a5 23. b3 Ng4 24. Qd5 Qc8 25. Ne2 Ne5 26. Nd4 Be6 27. Qxa5 Nd3 28. Nxe6 Nxe1 29. Qd8+ Qxd8 30. Nxd8 Bc3 31. Nc6 Nd3 32. Nxe7+ Kf8 33. Bg5 Nc5 34. Nd5 Bd4 35. Be7+ Ke8 36. Bxd6 Nxe4 37. Bf4 Nxf2 38. Kf1 Nd3 39. Bd2 Kd7 40. Ke2 Nc5 41. b4 Nb3 42. Bc3 Bg1 43. h3 h5 44. Kd3 Kd6 45. Kc4 Nc1 46. Nf6 Ne2 47. Ne4+ Kc6 48. b5+ Kb6 49. Bf6 Bh2 50. Bd8+ Kb7 51. Nd6+ Kb8 52. b6 Bxg3 53. Bc7+ 1-0